bitfinex-derivatives/quotes_SOLF0:USTF0_20250206
["timestamp","ask_amount","ask_price","bid_price","bid_amount"]
[1738865291416,5.237,190.9,190.87,0.03868677]
[1738865291616,0.03404664,190.91,190.87,0.03868677]
[1738865292116,21.38620942,190.9,190.8,3.133]
[1738865292419,21.38620942,190.87,190.76,1.5291]
[1738865292711,5.2389,190.84,190.77,5.2405]
[1738865293216,25.64620942,190.87,190.76,1.5291]
[1738865293415,5.2395,190.81,190.79,0.03875941]
[1738865293615,0.03330339,190.82,190.79,0.03875941]
[1738865294314,5.2395,190.81,190.79,0.03875941]
[1738865296017,5.2397,190.8,190.79,0.03875941]
[1738865296519,0.03330339,190.82,190.79,0.03875941]
[1738865301119,0.03330339,190.82,190.81,5.2395]
[1738865301515,21.38620942,190.93,190.81,5.2395]
[1738865301722,5.2369,190.91,190.85,5.2383]
[1738865302122,4.24,190.95,190.81,21.38620942]
[1738865302420,4.24,190.95,190.82,1.5346]
[1738865302822,5.27292477,190.9,190.87,0.03334668]
[1738865304624,0.03572477,190.9,190.87,0.03334668]
[1738865304821,0.03572477,190.9,190.87,5.27114668]
[1738865305822,0.03572477,190.9,190.87,0.03334668]
[1738865306324,5.2373,190.89,190.87,0.03334668]
[1738865306618,21.42193419,190.9,190.87,0.03334668]
[1738865306823,5.2375,190.88,190.79,6.8669]
[1738865307025,21.38620942,190.87,190.75,1.6461]
[1738865307426,5.2389,190.83,190.77,5.2403]
[1738865307726,21.38620942,190.87,190.75,1.6461]
[1738865308025,0.03387051,190.83,190.79,0.03605909]
[1738865308824,23.03440942,190.93,190.79,0.03605909]
[1738865309026,23.03440942,190.93,190.78,21.38620942]
[1738865309529,5.2369,190.91,190.78,21.38620942]
[1738865309728,3.0667,190.94,190.78,21.38620942]
[1738865309930,0.03674332,190.86,190.73,194.5645]
[1738865310127,42.77241884,190.73,190.4,21.38620942]
[1738865310323,21.38620942,190.56,190.41,1.583]
[1738865310929,21.38620942,190.6,190.44,21.38620942]
[1738865311129,21.38620942,190.6,190.5,5.2477]
[1738865311329,21.38620942,190.6,190.51,1.583]
[1738865311526,0.03550538,190.54,190.51,1.583]
[1738865311929,0.03550538,190.54,190.51,1.61940696]
[1738865313024,0.03550538,190.54,190.51,0.03640696]
[1738865314529,34.84233911,190.54,190.51,0.03640696]
[1738865315126,4.46,190.66,190.51,0.03640696]
[1738865315428,4.46,190.66,190.49,224.83531121]
[1738865315929,5.2445,190.63,190.49,224.83531121]
[1738865316330,0.03428698,190.58,190.54,0.03917853]
[1738865316534,5.2445,190.63,190.56,5.2463]
[1738865316723,5.2441,190.65,190.54,0.03917853]
[1738865317030,4.46,190.66,190.52,34.80683373]
[1738865317229,5.2445,190.63,190.5,1.6132]
[1738865317424,4.46,190.66,190.5,1.6132]
[1738865317630,0.03704703,190.58,190.55,0.03748774]
[1738865317926,5.2447,190.62,190.55,0.03748774]
[1738865318132,0.03803657,190.58,190.55,5.28408774]
[1738865318930,0.03803657,190.58,190.57,5.2461]
[1738865319125,34.80683373,190.7,190.55,34.84432147]
[1738865319328,4.44,190.71,190.55,34.84432147]
[1738865319529,5.2432,190.68,190.55,34.80683373]
[1738865319830,4.44,190.71,190.55,34.80683373]
[1738865320230,0.03345865,190.65,190.61,0.03352116]
[1738865321031,5.2444,190.63,190.61,0.03352116]
[1738865322633,0.03345865,190.65,190.61,0.03352116]
[1738865322832,5.2447,190.62,190.61,0.03352116]
[1738865324534,5.2444,190.63,190.61,0.03352116]
[1738865325034,40.05093373,190.64,190.61,0.03352116]
[1738865325236,5.2441,190.64,190.61,0.03352116]
[1738865325429,0.03345865,190.65,190.61,0.03352116]
[1738865326137,0.03345865,190.65,190.63,5.2444]
[1738865326433,0.03345865,190.65,190.61,0.03352116]
[1738865326634,5.46860273,190.73,190.61,0.03352116]
[1738865326830,4.42,190.73,190.61,0.03352116]
[1738865327133,4.42,190.73,190.59,1.6152]
[1738865327134,39.22683373,190.73,190.59,1.6152]
[1738865327434,5.2431,190.68,190.62,5.2446]
[1738865327730,34.80683373,190.7,190.63,0.03777308]
[1738865328140,5.2436,190.67,190.63,0.03777308]
[1738865328833,34.80683373,190.67,190.63,0.03777308]
[1738865329237,5.2441,190.64,190.63,0.03777308]
[1738865329937,5.2452,190.61,190.56,1.5331]
[1738865330334,4.4,190.63,190.56,1.5331]
[1738865330540,5.2455,190.59,190.56,1.5331]
[1738865330738,5.2455,190.59,190.53,8.5528]
[1738865331140,0.03777308,190.58,190.54,0.03728954]
[1738865331439,34.80683373,190.72,190.55,34.80683373]
[1738865331639,39.20683373,190.72,190.55,224.83531121]
[1738865332340,5.2433,190.67,190.6,5.245]
[1738865332634,39.20683373,190.72,190.62,0.03995085]
[1738865332834,5.2435,190.67,190.62,0.03995085]
[1738865333036,34.80683373,190.68,190.62,0.03995085]
[1738865333541,5.2444,190.63,190.62,0.03995085]
[1738865334338,34.80683373,190.65,190.62,0.03995085]
[1738865334541,5.2442,190.64,190.62,0.03995085]
[1738865334738,34.80683373,190.68,190.62,0.03995085]
[1738865335143,4.4,190.67,190.62,0.03995085]
[1738865336445,5.2444,190.63,190.62,0.03995085]
[1738865337639,5.2442,190.64,190.62,0.03995085]
[1738865337843,4.4,190.67,190.62,0.03995085]
[1738865338344,5.2442,190.64,190.62,0.03995085]
[1738865339144,5.2444,190.63,190.62,0.03995085]
[1738865340346,4.4,190.67,190.62,0.03995085]
[1738865341949,5.2444,190.63,190.62,0.03995085]
[1738865342248,4.38,190.67,190.62,0.03995085]
[1738865342949,21.40374331,190.65,190.62,0.03995085]
[1738865343244,5.2444,190.63,190.62,0.03995085]
[1738865344149,5.2456,190.59,190.53,3.3057]
[1738865344546,5.2456,190.59,190.53,8.5528]
[1738865344749,21.40374331,190.59,190.47,191.65687748]
[1738865344948,21.40374331,190.59,190.48,1.6524]
[1738865345244,0.03821217,190.55,190.52,0.03618894]
[1738865346050,0.03821217,190.55,190.54,5.2469]
[1738865346352,0.03821217,190.55,190.52,0.03618894]
[1738865347347,0.03821217,190.55,190.52,5.28358894]
[1738865347544,0.03821217,190.55,190.52,0.03618894]
[1738865348152,5.28501217,190.55,190.52,0.03618894]
[1738865348547,0.03821217,190.55,190.52,0.03618894]
[1738865349955,5.2471,190.54,190.52,0.03618894]
[1738865350254,0.03821217,190.55,190.52,0.03618894]
[1738865350558,5.28481217,190.55,190.52,0.03618894]
[1738865350855,0.03821217,190.55,190.52,0.03618894]
[1738865351552,21.40374331,190.53,190.43,195.27827748]
[1738865351746,21.40374331,190.5,190.43,5.2498]
[1738865352554,0.03865513,190.48,190.45,0.03326898]
[1738865353457,5.2488,190.47,190.45,0.03326898]
[1738865353753,0.03865513,190.48,190.45,0.03326898]
[1738865354252,21.40374331,190.59,190.45,0.03326898]
[1738865354657,4.36,190.6,190.44,3.1976]
[1738865354852,21.40374331,190.59,190.44,3.1976]
[1738865355552,0.03560979,190.53,190.5,0.03806909]
[1738865357664,0.03560979,190.53,190.51,5.2476]
[1738865359063,0.03560979,190.53,190.5,0.03806909]
[1738865359260,0.03560979,190.53,190.52,5.2474]
[1738865360960,21.40374331,190.62,190.5,0.03806909]
[1738865361165,4.34,190.6,190.46,21.40374331]
[1738865361367,5.2455,190.59,190.53,5.2469]
[1738865362066,5.2455,190.59,190.54,0.03716291]
[1738865363168,5.2455,190.59,190.54,5.28406291]
[1738865363370,4.34,190.6,190.54,5.28406291]
[1738865363371,9.5853,190.6,190.54,5.28406291]
[1738865363564,21.40374331,190.62,190.57,5.246]
[1738865363767,21.40374331,190.62,190.54,0.03716291]
[1738865363968,26.64844331,190.62,190.54,0.03716291]
[1738865364167,21.40374331,190.62,190.56,5.2462]
[1738865364569,26.64844331,190.62,190.57,5.246]
[1738865364867,26.64844331,190.62,190.54,0.03716291]
[1738865365172,26.64844331,190.62,190.56,5.2461]
[1738865366669,21.40374331,190.62,190.54,0.03716291]
[1738865366869,21.40374331,190.68,190.54,0.03716291]
[1738865367169,4.32,190.67,190.52,21.40374331]
[1738865367470,9.5634,190.67,190.62,5.2447]
[1738865367667,37.13374331,190.8,190.58,0.03391091]
[1738865367867,21.40374331,190.71,190.55,21.40374331]
[1738865368065,21.40374331,190.71,190.67,0.03444384]
[1738865368370,21.40374331,190.71,190.67,0.03480599]
[1738865368569,21.40374331,190.68,190.54,1.6467]
[1738865369273,5.2438,190.66,190.6,5.245]
[1738865369672,0.0364794,190.65,190.61,0.03997852]
[1738865370575,0.0364794,190.65,190.61,5.28487852]
[1738865370772,0.0364794,190.65,190.61,0.03997852]
[1738865371175,0.0364794,190.65,190.64,5.2441]
[1738865371379,0.0364794,190.65,190.62,1.5747]
[1738865371678,0.0364794,190.65,190.62,6.8192]
[1738865371872,0.0364794,190.65,190.62,1.5747]
[1738865372677,0.0364794,190.65,190.63,5.2442]
[1738865373374,0.0364794,190.65,190.62,1.5747]
[1738865373572,0.0364794,190.65,190.64,5.2441]
[1738865374578,21.40374331,190.74,190.63,1.5702]
[1738865374879,21.40374331,190.74,190.62,1.5747]
[1738865375078,5.2425,190.71,190.67,5.2433]
[1738865375381,21.40374331,190.74,190.62,1.5747]
[1738865375573,5.2424,190.71,190.66,5.2435]
[1738865375772,21.40374331,190.74,190.66,0.03564164]
[1738865376177,5.242,190.72,190.66,0.03564164]
[1738865376378,21.40374331,190.74,190.66,0.03564164]
[1738865376883,21.40374331,190.71,190.66,0.03564164]
[1738865377479,21.40374331,190.68,190.58,1.5418]
[1738865378183,5.2439,190.65,190.59,5.2453]
[1738865378475,21.40374331,190.68,190.59,5.2453]
[1738865378683,0.0358431,190.64,190.6,0.0394213]
[1738865379784,0.0358431,190.64,190.6,5.2844213]
[1738865379983,0.0358431,190.64,190.6,0.0394213]
[1738865380285,4.28,190.71,190.6,0.0394213]
[1738865380478,9.5224,190.71,190.63,5.2443]
[1738865380784,4.28,190.71,190.58,1.5496]
[1738865381079,5.243,190.69,190.61,5.2447]
[1738865381284,4.28,190.71,190.58,1.5496]
[1738865381485,4.28,190.71,190.63,0.03334621]
[1738865381783,5.2431,190.68,190.63,0.03334621]
[1738865382077,21.40374331,190.68,190.47,181.43471031]
[1738865382283,21.40374331,190.6,190.41,21.40374331]
[1738865382483,21.40374331,190.54,190.38,21.40374331]
[1738865382876,21.40374331,190.54,190.43,5.2497]
[1738865383080,21.40374331,190.51,190.35,21.40374331]
[1738865383284,0.03334621,190.5,190.47,0.033818]
[1738865383578,21.40374331,190.51,190.35,21.40374331]
[1738865383785,0.03334621,190.5,190.47,0.03748697]
[1738865383985,0.03334621,190.5,190.41,21.44315328]
[1738865384283,0.03334621,190.5,190.41,21.40374331]
[1738865384485,0.03334621,190.5,190.44,21.44071478]
[1738865384685,4.28,190.59,190.44,21.44071478]
[1738865384888,4.28,190.59,190.44,202.83845362]
[1738865385784,4.28,190.59,190.5,0.03315564]
[1738865386584,4.28,190.59,190.52,5.2472]
[1738865386784,4.28,190.59,190.5,0.03315564]
[1738865387483,4.28,190.59,190.57,5.246]
[1738865387688,4.28,190.59,190.51,1.6771]
[1738865387987,4.28,190.59,190.53,0.03433201]
[1738865389288,4.28,190.59,190.58,5.2458]
[1738865390787,21.40374331,190.66,190.64,5.2439]
[1738865390986,4.3,190.67,190.53,21.40374331]
[1738865391181,21.40374331,190.69,190.63,0.03870525]
[1738865391485,21.40374331,190.69,190.53,21.40374331]
[1738865391788,4.3,190.7,190.56,21.40374331]
[1738865392089,21.40374331,190.72,190.59,0.0349114]
[1738865392289,25.70374331,190.72,190.57,1.6439]
[1738865392491,21.40374331,190.72,190.64,0.03646342]
[1738865392790,21.40374331,190.75,190.64,0.03646342]
[1738865392990,25.70374331,190.75,190.64,0.03646342]
[1738865393290,21.40374331,190.75,190.73,5.2416]
[1738865393489,21.40374331,190.75,190.68,0.0377503]
[1738865393688,21.40374331,190.75,190.6,1.6084]
[1738865394089,21.40374331,190.75,190.66,0.04036975]
[1738865394289,21.40374331,190.72,190.66,0.04036975]
[1738865394584,21.40374331,190.68,190.58,1.6385]
[1738865394784,21.40374331,190.65,190.58,1.6385]
[1738865394989,21.40374331,190.65,190.64,5.2441]
[1738865395393,21.40374331,190.7,190.58,1.6385]
[1738865395587,21.40374331,190.7,190.67,5.2432]
[1738865395786,0.03794819,190.66,190.62,0.03366636]
[1738865396086,0.03526368,190.66,190.62,0.03551604]
[1738865396294,6.368e-05,190.66,190.62,0.03551604]
[1738865396693,6.368e-05,190.66,190.65,5.2439]
[1738865397290,6.368e-05,190.66,190.65,26.64764331]
[1738865397493,21.40374331,190.82,190.79,5.2399]
[1738865397695,4.32,190.81,190.79,5.2399]
[1738865398091,21.40374331,190.82,190.76,5.2407]
[1738865398292,21.40374331,190.82,190.67,1.5907]
[1738865398792,21.40374331,190.82,190.75,5.2409]
[1738865398989,21.40374331,190.82,190.73,0.03795391]
[1738865399194,1.6344,190.84,190.73,0.03795391]
[1738865399390,1.5271,190.85,190.73,0.03795391]
[1738865399694,1.5271,190.85,190.72,1.6011]
[1738865399891,1.5271,190.85,190.77,0.04030547]
[1738865400796,21.40374331,190.84,190.77,0.04030547]
[1738865400998,21.40374331,190.81,190.77,0.04030547]
[1738865401194,21.40374331,190.78,190.77,0.04030547]
[1738865401394,21.40374331,190.81,190.77,0.04030547]
[1738865401595,21.40374331,190.84,190.77,0.04030547]
[1738865402196,1.5271,190.85,190.77,0.04030547]
[1738865402397,3.2292,190.89,190.77,0.04030547]
[1738865402699,4.34,190.92,190.78,21.40374331]
[1738865402901,4.34,190.92,190.89,5.2372]
[1738865403098,21.40374331,190.96,190.81,21.43726901]
[1738865403298,21.40374331,190.96,190.81,21.40374331]
[1738865403500,21.40374331,190.93,190.87,0.03831984]
[1738865403701,21.40374331,190.9,190.87,0.03831984]
[1738865403896,21.40374331,190.9,190.79,1.6175]
[1738865404099,21.40374331,190.87,190.79,1.6175]
[1738865404302,21.40374331,190.87,190.75,3.184]
[1738865404504,21.40374331,190.84,190.75,3.184]
[1738865405102,0.03666529,190.81,190.78,0.0361266]
[1738865405903,0.03666529,190.81,190.8,5.2397]
[1738865407199,25.78374331,190.93,190.86,5.2381]
[1738865407702,25.78374331,190.93,190.85,5.2383]
[1738865407902,25.78374331,190.93,190.77,21.40374331]
[1738865408302,21.40374331,190.9,190.83,0.03464227]
[1738865408803,21.40374331,190.9,190.83,5.27344227]
[1738865409104,21.40374331,190.9,190.83,0.03464227]
[1738865409306,21.40374331,190.9,190.85,5.2383]
[1738865409504,21.40374331,190.9,190.83,0.03464227]
[1738865409705,31.02014331,190.93,190.83,0.03464227]
[1738865409905,25.78374331,190.93,190.83,0.03464227]
[1738865410105,21.40374331,190.96,190.83,0.03464227]
[1738865410605,4.38,190.97,190.88,0.03455175]
[1738865411207,3.1197,190.98,190.88,0.03455175]
[1738865411505,7.4997,190.98,190.88,0.03455175]
[1738865412103,26.63914331,190.96,190.88,0.03455175]
[1738865412308,21.40374331,190.96,190.89,5.2372]
[1738865412708,26.63914331,190.96,190.89,5.2372]
[1738865414511,8.3545,190.98,190.91,5.2365]
[1738865414710,21.40374331,190.99,190.83,21.40374331]
[1738865414911,21.40374331,190.99,190.93,0.03460871]
[1738865415109,21.40374331,190.99,190.84,3.1097]
[1738865415310,21.40374331,190.99,190.9,0.04000521]
[1738865416207,5.2349,190.98,190.91,5.2365]
[1738865416411,21.40374331,190.96,190.9,0.04000521]
[1738865416608,21.40374331,190.96,190.84,3.1097]
[1738865416808,5.2367,190.92,190.91,0.03914539]
[1738865417107,21.40374331,190.93,190.85,5.2383]
[1738865417305,21.40374331,190.93,190.84,1.5533]
[1738865417709,21.40374331,190.96,190.84,1.5533]
[1738865417913,26.63934331,190.96,190.89,5.237]
[1738865418113,0.034732,190.92,190.88,0.03619954]
[1738865418512,0.034732,190.92,190.89,5.2372]
[1738865418812,0.034732,190.92,190.88,0.03619954]
[1738865419513,0.034732,190.92,190.89,5.2372]
[1738865419716,0.034732,190.92,190.88,0.03619954]
[1738865420809,0.034732,190.92,190.91,5.2367]
[1738865421512,21.40374331,191.05,190.89,21.40374331]
[1738865421713,4.38,191.04,190.96,5.2351]
[1738865422312,5.2334,191.03,190.96,5.2351]
[1738865422814,4.38,191.04,190.98,0.03314955]
[1738865423317,21.40374331,191.02,190.98,0.03314955]
[1738865423515,5.2345,190.99,190.98,0.03314955]
[1738865423715,21.40374331,191.02,190.98,0.03314955]
[1738865424216,4.38,191.04,190.98,0.03314955]
[1738865424721,9.6134,191.04,190.98,0.03314955]
[1738865425012,5.2334,191.04,190.98,0.03314955]
[1738865425412,21.40374331,191.05,190.98,0.03314955]
[1738865425618,5.2336,191.03,190.98,0.03314955]
[1738865426417,5.2345,191.0,190.98,0.03314955]
[1738865426615,21.40374331,191.02,190.98,0.03314955]
[1738865426815,5.2342,191.01,190.98,0.03314955]
[1738865428518,21.40374331,191.02,190.98,0.03314955]
[1738865429524,21.40374331,190.99,190.83,21.40374331]
[1738865429717,21.40374331,190.96,190.8,21.40374331]
[1738865429918,5.237,190.9,190.84,1.5533]
[1738865430219,5.237,190.9,190.82,5.2389]
[1738865430619,0.03811512,190.88,190.84,0.03648665]
[1738865430820,0.03811512,190.88,190.84,5.27508665]
[1738865431320,0.03811512,190.88,190.84,0.03648665]
[1738865432019,0.03811512,190.88,190.84,5.27508665]
[1738865433322,0.03811512,190.88,190.85,5.2382]
[1738865433925,0.03811512,190.88,190.84,0.03648665]
[1738865434625,0.03811512,190.88,190.87,5.2378]
[1738865434818,5.8877,190.99,190.84,0.03648665]
[1738865435018,4.34,190.99,190.86,21.40374331]
[1738865435320,4.34,190.99,190.87,1.5879]
[1738865435621,1.6347,191.04,190.89,21.40374331]
[1738865435823,5.2336,191.03,190.9,1.5992]
[1738865436022,5.2336,191.03,190.95,0.03498322]
[1738865436321,21.40374331,191.02,190.95,0.03498322]
[1738865436518,21.40374331,190.96,190.79,1.5992]
[1738865436724,21.40374331,190.87,190.77,1.5879]
[1738865437019,5.2401,190.79,190.71,1.5992]
[1738865437216,4.34,190.83,190.71,1.5992]
[1738865437423,21.40374331,190.78,190.65,5.2436]
[1738865437623,21.40374331,190.78,190.61,24.59394331]
[1738865437824,21.40374331,190.75,190.61,3.1902]
[1738865438019,5.2422,190.71,190.61,3.1902]
[1738865438220,25.74374331,190.72,190.55,21.40374331]
[1738865438425,25.74374331,190.72,190.56,1.6244]
[1738865438426,21.40374331,190.69,190.56,1.6244]
[1738865438727,4.34,190.72,190.56,1.6244]
[1738865438728,25.74374331,190.72,190.56,1.6244]
[1738865439028,0.03663563,190.64,190.61,0.03687878]
[1738865439228,3.563e-05,190.64,190.61,21.44062209]
[1738865439425,4.34,190.75,190.61,21.44062209]
[1738865439626,4.34,190.75,190.61,21.40374331]
[1738865439926,4.34,190.75,190.62,1.5658]
[1738865440227,4.34,190.75,190.62,3.0972]
[1738865440528,0.03313742,190.7,190.67,0.03309481]
[1738865443234,5.27563742,190.7,190.67,0.03309481]
[1738865443436,0.03313742,190.7,190.67,0.03309481]
[1738865444137,5.27573742,190.7,190.67,0.03309481]
[1738865444430,0.03313742,190.7,190.67,0.03309481]
[1738865444729,5.244,190.65,190.56,1.6244]
[1738865444934,21.40374331,190.67,190.56,6.8707]
[1738865445735,0.03677281,190.63,190.6,0.03499569]
[1738865447937,0.03677281,190.63,190.6,5.28019569]
[1738865448640,0.03677281,190.63,190.6,0.03499569]
[1738865450337,0.03677281,190.63,190.52,131.93247822]
[1738865450639,4.33677281,190.63,190.52,131.93247822]
[1738865450833,5.2456,190.59,190.52,131.93247822]
[1738865451039,5.2456,190.59,190.52,126.68507822]
[1738865451340,21.40374331,190.61,190.52,126.68507822]
[1738865451538,0.03878572,190.57,190.54,0.04001496]
[1738865451742,5.2467,190.55,190.54,0.04001496]
[1738865452040,0.03878572,190.57,190.54,0.04001496]
[1738865452541,5.2466,190.55,190.54,0.04001496]
[1738865453940,5.28508572,190.57,190.54,0.04001496]
[1738865454139,21.40374331,190.55,190.46,5.2488]
[1738865454536,5.2476,190.52,190.41,4.8971]
[1738865455238,0.03810605,190.48,190.45,0.0395188]
[1738865456843,0.03810605,190.48,190.45,5.2888188]
[1738865457845,0.03810605,190.48,190.47,5.2488]
[1738865458443,0.03810605,190.48,190.45,0.0395188]
[1738865458644,0.03810605,190.48,190.46,5.2491]
[1738865458944,0.03810605,190.48,190.45,0.0395188]
[1738865461548,5.2488,190.47,190.45,0.0395188]
[1738865461948,0.03810605,190.48,190.45,0.0395188]
[1738865462746,5.2491,190.46,190.34,21.40374331]
[1738865462947,21.40374331,190.49,190.34,21.40374331]
[1738865463648,5.2491,190.46,190.39,5.2508]
[1738865463942,0.03980056,190.43,190.4,0.03635975]
[1738865464149,5.2505,190.41,190.4,0.03635975]
[1738865464348,4.26,190.42,190.32,4.7432]
[1738865464848,4.26,190.42,190.27,181.43471031]
[1738865465048,4.26,190.42,190.28,1.6518]
[1738865465548,0.03630578,190.37,190.33,0.04005197]
[1738865467845,5.2524,190.34,190.33,0.04005197]
[1738865468145,21.40374331,190.36,190.23,1.6518]
[1738865468450,5.2527,190.33,190.23,1.6518]
[1738865468748,21.40374331,190.36,190.23,1.6518]
[1738865468945,15.74,190.38,189.97,21.40374331]
[1738865469148,21.40374331,190.08,189.93,21.40374331]
[1738865469544,0.03577587,190.02,189.99,5.30217666]
[1738865469749,0.03577587,190.02,189.99,0.04017666]
[1738865469948,21.43951918,190.02,189.99,0.04017666]
[1738865470352,21.43951918,190.02,189.9,4.8208]
[1738865470756,31.52642402,190.01,189.9,4.8208]
[1738865471451,0.03850544,189.97,189.94,0.03963971]
[1738865473850,31.52642402,189.95,189.82,3.2003]
[1738865474154,31.52642402,189.92,189.82,3.2003]
[1738865474650,31.52642402,189.95,189.82,3.2003]
[1738865474953,31.52642402,189.95,189.87,5.2652]
[1738865475155,0.03733986,189.9,189.87,0.03522316]
[1738865475454,31.52642402,189.92,189.82,3.2003]
[1738865475655,0.03852348,189.9,189.87,0.03847277]
[1738865477256,31.52642402,189.89,189.87,0.03847277]
[1738865477455,0.03852348,189.9,189.87,0.03847277]
[1738865478156,0.03852348,189.9,189.88,5.265]
[1738865478351,0.03852348,189.9,189.87,0.03847277]
[1738865478553,0.03852348,189.9,189.89,5.2648]
[1738865479859,0.03852348,189.9,189.88,5.2651]
[1738865480657,0.03852348,189.9,189.89,5.2648]
[1738865481257,36.00642402,189.99,189.93,5.2635]
[1738865481456,36.00642402,189.99,189.82,3.2003]
[1738865481850,41.26862402,189.99,189.82,3.2003]
[1738865482055,41.25642402,189.99,189.82,3.2003]
[1738865482355,0.03363563,189.92,189.89,0.03889685]
[1738865482558,31.52642402,189.93,189.89,0.03889685]
[1738865482758,0.03396454,189.92,189.89,0.03889685]
[1738865485059,0.03396454,189.92,189.9,5.2643]
[1738865485358,0.03396454,189.92,189.89,0.03889685]
[1738865487255,0.03396454,189.92,189.9,5.2646]
[1738865487455,0.03396454,189.92,189.89,0.03889685]
[1738865487861,31.52642402,189.9,189.89,0.03889685]
[1738865488059,0.03396454,189.92,189.89,0.03889685]
[1738865488358,31.52642402,189.9,189.65,181.43471031]
[1738865488559,31.52642402,189.78,189.62,31.52642402]
[1738865488754,31.52642402,189.78,189.54,31.52642402]
[1738865488755,31.52642402,189.75,189.59,31.52642402]
[1738865489062,31.52642402,189.78,189.62,31.52642402]
[1738865489561,0.03854168,189.72,189.68,0.03796014]
[1738865490159,31.52642402,189.81,189.68,0.03796014]
[1738865490361,31.52642402,189.84,189.68,31.56438416]
[1738865490560,31.52642402,189.84,189.68,31.52642402]
[1738865490755,31.52642402,189.84,189.79,5.2675]
[1738865490958,31.52642402,189.84,189.68,31.52642402]
[1738865491158,19.43951112,189.82,189.66,19.43951112]
[1738865491363,4.56,189.88,189.69,19.43951112]
[1738865491364,19.43951112,189.85,189.69,19.43951112]
[1738865491662,1.88e-06,189.78,189.75,19.43951112]
[1738865491861,1.88e-06,189.78,189.77,5.2682]
[1738865492061,19.43951112,189.88,189.69,19.43951112]
[1738865492363,19.43951112,189.88,189.83,5.2665]
[1738865492762,0.03649525,189.87,189.84,0.03418203]
[1738865493061,0.03649525,189.87,189.85,5.2659]
[1738865493264,0.03649525,189.87,189.84,0.03418203]
[1738865493663,0.03649525,189.87,189.85,5.2659]
[1738865493863,0.03649525,189.87,189.84,0.03418203]
[1738865494365,0.03649525,189.87,189.86,5.2657]
[1738865497970,19.43951112,189.97,189.84,0.03418203]
[1738865498170,19.43951112,189.97,189.81,19.43951112]
[1738865498466,19.43951112,190.0,189.84,19.43951112]
[1738865498667,19.43951112,189.93,189.91,5.2642]
[1738865499171,19.43951112,189.93,189.92,5.264]
[1738865499471,0.03503104,189.94,189.9,0.04009333]
[1738865499867,0.03503104,189.94,189.93,5.2637]
[1738865500064,19.43951112,190.03,189.9,0.04009333]
[1738865500268,19.43951112,190.03,189.86,19.43951112]
[1738865500770,19.43951112,190.03,189.99,5.262]
[1738865500969,19.43951112,190.03,189.86,19.43951112]
[1738865501165,19.43951112,190.0,189.93,0.03767766]
[1738865501366,0.04011161,189.96,189.81,1.611]
[1738865501566,19.43951112,189.97,189.9,0.03985598]
[1738865502073,0.04043103,189.95,189.9,0.03985598]
[1738865502674,0.04043103,189.95,189.93,5.2635]
[1738865502873,19.43951112,189.94,189.9,0.03985598]
[1738865503073,0.04043103,189.95,189.9,0.03985598]
[1738865503372,0.04043103,189.95,189.94,5.2635]
[1738865506176,0.04043103,189.95,189.9,0.03985598]
[1738865506375,19.43951112,189.94,189.9,0.03985598]
[1738865506981,19.43951112,189.94,189.91,5.2641]
[1738865507176,19.43951112,189.94,189.9,0.03985598]
[1738865507680,19.43951112,189.94,189.9,5.30415598]
[1738865508678,19.43951112,189.94,189.9,0.03985598]
[1738865508879,19.43951112,189.91,189.81,1.584]
[1738865509278,19.43951112,189.88,189.81,1.584]
[1738865509475,19.43951112,189.85,189.77,3.2608]
[1738865509673,19.43951112,189.88,189.77,3.2608]
[1738865510175,0.0364704,189.84,189.81,0.03618832]
[1738865510382,0.0364704,189.84,189.83,5.2665]
[1738865516585,19.43951112,189.94,189.9,5.2644]
[1738865517190,19.43951112,189.94,189.78,19.43951112]
[1738865517395,19.43951112,189.94,189.88,5.265]
[1738865517590,19.43951112,189.94,189.78,19.43951112]
[1738865517787,0.03980725,189.93,189.89,0.03973676]
[1738865518091,0.03619655,189.93,189.9,0.03481613]
[1738865518289,0.03619655,189.93,189.78,19.43951112]
[1738865518290,19.43951112,189.94,189.82,5.2666]
[1738865518485,0.03967765,189.93,189.9,0.03602538]
[1738865518691,19.43951112,189.91,189.77,3.2608]
[1738865518884,19.43951112,189.91,189.86,5.2654]
[1738865519191,19.43951112,189.91,189.77,3.2608]
[1738865519492,19.43951112,189.88,189.84,5.266]
[1738865519789,19.47441565,189.88,189.84,5.29968504]
[1738865520692,19.47441565,189.88,189.84,0.03368504]
[1738865520892,19.47441565,189.88,189.85,5.2659]
[1738865521188,19.47441565,189.88,189.84,0.03368504]
[1738865521386,19.43951112,189.85,189.8,5.2671]